bitfinex-derivatives/quotes_SOLF0:USTF0_20260203
["timestamp","ask_amount","ask_price","bid_price","bid_amount"]
[1770159047394,0.16828342,98.456,98.385,3.91010528]
[1770159047699,6.87572709,98.49,98.405,3.91010528]
[1770159047901,6.87572709,98.49,98.394,142.4772]
[1770159047902,339.71572709,98.5,98.421,3.91010528]
[1770159048100,6.87572709,98.52,98.432,3.91010528]
[1770159048297,6.87572709,98.54,98.455,3.91010528]
[1770159048492,6.87572709,98.54,98.471,142.3654]
[1770159048694,6.87572709,98.54,98.464,142.3758]
[1770159048695,6.87572709,98.56,98.473,142.3628]
[1770159048991,6.87572709,98.56,98.472,3.91010528]
[1770159048992,386.95565922,98.593,98.509,142.3102]
[1770159049197,386.95565922,98.593,98.518,3.97585838]
[1770159049394,6.87572709,98.61,98.531,142.2789]
[1770159049690,6.87572709,98.63,98.547,142.2551]
[1770159049888,142.1382,98.629,98.543,3.97585838]
[1770159050088,142.1643,98.611,98.543,3.97585838]
[1770159050398,6.87572709,98.61,98.52,3.97585838]
[1770159050698,142.1831,98.598,98.52,3.97585838]
[1770159051103,9.1403,98.598,98.52,3.97585838]
[1770159051696,151.324,98.598,98.52,3.97585838]
[1770159052091,142.2373,98.56,98.498,3.93628848]
[1770159052296,142.2373,98.56,98.456,3.93628848]
[1770159052297,142.259,98.545,98.456,3.93628848]
[1770159052901,151.4042,98.545,98.456,3.93628848]
[1770159053101,142.2733,98.535,98.456,3.93628848]
[1770159053301,142.2661,98.54,98.456,3.93628848]
[1770159053502,149.14182709,98.54,98.456,3.93628848]
[1770159053701,6.87572709,98.54,98.456,3.93628848]
[1770159054606,142.2704,98.537,98.456,3.93628848]
[1770159054803,142.2719,98.536,98.456,3.93628848]
[1770159055911,151.4179,98.536,98.456,3.93628848]
[1770159056710,151.4307,98.528,98.428,3.95415947]
[1770159056909,6.87572709,98.52,98.428,3.95415947]
[1770159058110,6.87572709,98.52,98.43,3.95100418]
[1770159058410,9.1476,98.519,98.43,3.95100418]
[1770159058609,9.1476,98.519,98.432,3.95100418]
[1770159059912,9.1476,98.519,98.435,3.95504198]
[1770159060705,9.1476,98.519,98.437,3.95504198]
[1770159061308,337.74,98.518,98.437,3.95504198]
[1770159062206,337.74,98.518,98.441,3.95938597]
[1770159062405,6.87572709,98.52,98.441,3.95938597]
[1770159063512,6.87572709,98.52,98.444,3.84598045]
[1770159064611,6.87572709,98.52,98.446,3.84598045]
[1770159065108,6.90877663,98.52,98.446,3.84598045]
[1770159065910,338.34,98.519,98.446,3.84598045]
[1770159066113,338.34,98.519,98.448,3.82571481]
[1770159066313,0.03304954,98.52,98.448,3.82571481]
[1770159066711,0.03304954,98.52,98.462,9.1528]
[1770159066911,0.03304954,98.52,98.449,142.3964]
[1770159066912,0.03304954,98.539,98.463,3.82571481]
[1770159068811,9.17884954,98.539,98.469,9.1522]
[1770159069011,0.0544254,98.538,98.469,3.81502688]
[1770159069209,0.0544254,98.538,98.408,142.4567]
[1770159069210,0.06344337,98.514,98.45,3.81051789]
[1770159069409,0.06344337,98.501,98.43,3.81051789]
[1770159069809,9.1504,98.489,98.409,3.81051789]
[1770159070008,0.06344337,98.487,98.409,3.81051789]
[1770159070407,0.06344337,98.479,98.409,3.81051789]
[1770159070613,0.06344337,98.477,98.409,3.81051789]
[1770159070814,0.06344337,98.477,98.388,3.81051789]
[1770159071008,142.3795,98.462,98.388,3.81051789]
[1770159071209,338.58,98.476,98.388,3.81051789]
[1770159071210,142.3806,98.461,98.388,3.81051789]
[1770159071409,142.3848,98.458,98.388,3.81051789]
[1770159071614,9.1544,98.447,98.388,3.81051789]
[1770159071818,9.1544,98.447,98.373,9.1612]
[1770159072019,9.1544,98.447,98.374,3.87830148]
[1770159072422,9.1532,98.459,98.387,9.1598]
[1770159072610,142.3854,98.458,98.374,3.87830148]
[1770159073315,9.1541,98.449,98.375,3.87666705]
[1770159073918,9.155,98.44,98.375,3.87666705]
[1770159074318,6.87572709,98.46,98.375,3.87666705]
[1770159074918,6.87572709,98.46,98.381,3.87666705]
[1770159075122,142.3549,98.479,98.388,3.87666705]
[1770159075428,9.1524,98.467,98.395,13.03802447]
[1770159075723,142.3821,98.46,98.396,3.87892447]
[1770159075923,142.3821,98.46,98.34,142.5552]
[1770159075924,9.1546,98.444,98.377,9.1608]
[1770159076121,142.3922,98.453,98.377,13.03972447]
[1770159076924,142.3922,98.453,98.178,24.7848841]
[1770159076925,142.4419,98.419,98.359,3.87892447]
[1770159077227,142.4437,98.418,98.359,3.87892447]
[1770159077423,9.1586,98.401,98.339,3.85643991]
[1770159078126,9.1595,98.391,98.339,3.85643991]
[1770159079319,339.44,98.408,98.339,3.85643991]
[1770159079320,9.1585,98.402,98.339,3.85643991]
[1770159079927,339.44,98.408,98.34,13.01610248]
[1770159080123,9.1574,98.414,98.341,3.85200248]
[1770159081932,9.1574,98.414,98.343,9.1639]
[1770159082332,9.1574,98.414,98.344,3.87817026]
[1770159082533,339.36,98.417,98.327,142.5736]
[1770159082534,340.22,98.417,98.356,3.87817026]
[1770159082736,9.1564,98.425,98.356,3.87817026]
[1770159083638,340.34,98.434,98.363,3.89466726]
[1770159084327,340.44,98.454,98.363,3.89466726]
[1770159084531,340.44,98.454,98.371,3.89466726]
[1770159085034,142.397,98.45,98.375,3.89466726]
[1770159085335,142.3985,98.449,98.375,3.89466726]
[1770159085537,483.3585,98.449,98.375,3.89466726]
[1770159085834,9.1548,98.441,98.375,3.89466726]
[1770159086336,340.96,98.449,98.375,3.89466726]
[1770159087028,9.1557,98.432,98.375,3.89466726]
[1770159087635,9.1546,98.444,98.379,9.1606]
[1770159087936,9.1546,98.444,98.38,3.90024984]
[1770159088338,9.1546,98.444,98.382,3.90024984]
[1770159088532,9.1555,98.434,98.382,3.90024984]
[1770159089231,9.1544,98.446,98.38,9.1604]
[1770159089632,340.96,98.449,98.362,3.93373411]
[1770159090829,9.1555,98.434,98.37,3.93373411]
[1770159091539,9.1555,98.434,98.372,9.1612]
[1770159091938,9.1555,98.434,98.372,13.10600031]
[1770159092440,9.1555,98.434,98.375,9.161]
[1770159092734,340.96,98.449,98.375,9.161]
[1770159093335,9.1556,98.434,98.375,9.161]
[1770159094037,9.1556,98.434,98.373,3.94480031]
[1770159096642,9.1556,98.434,98.373,13.10590031]
[1770159096843,9.1556,98.434,98.374,4.02498832]
[1770159098437,342.5,98.445,98.374,4.02498832]
[1770159098642,142.4209,98.433,98.374,4.02498832]
[1770159099145,9.1576,98.411,98.374,4.02498832]
[1770159099942,9.1576,98.411,98.353,4.03405951]
[1770159100143,9.1584,98.403,98.353,4.03405951]
[1770159100746,9.1584,98.403,98.327,4.03405951]
[1770159100949,9.1591,98.396,98.336,9.1646]
[1770159101740,9.1598,98.388,98.332,9.165]
[1770159103150,9.1598,98.388,98.327,4.03405951]
[1770159104746,9.1598,98.388,98.329,4.0237788]
[1770159104944,9.1606,98.38,98.329,4.0237788]
[1770159105349,341.68,98.404,98.33,9.1651]
[1770159105549,9.1589,98.398,98.331,4.0550097]
[1770159105748,6.8734418,98.41,98.331,4.0550097]
[1770159105950,6.8734418,98.41,98.35,9.1633]
[1770159106356,9.1592,98.395,98.331,4.0550097]
[1770159106647,250.72,98.412,98.337,4.0550097]
[1770159107254,341.5,98.428,98.337,4.0550097]
[1770159107449,9.1567,98.421,98.359,9.1624]
[1770159107650,142.3932,98.453,98.359,4.06926385]
[1770159107951,9.1544,98.446,98.384,9.1601]
[1770159108759,9.1544,98.446,98.392,9.1593]
[1770159109349,9.1544,98.446,98.384,9.1601]
[1770159112255,9.1544,98.446,98.384,13.36881016]
[1770159112757,6.8734418,98.46,98.384,4.20871016]
[1770159112758,142.3852,98.458,98.384,4.20871016]
[1770159113252,340.94,98.457,98.384,4.20871016]
[1770159113654,9.1549,98.44,98.384,4.20871016]
[1770159113956,9.1549,98.44,98.378,9.1607]
[1770159115658,9.1549,98.44,98.378,13.36189852]
[1770159116455,9.1549,98.44,98.379,4.20119852]
[1770159116661,9.1542,98.448,98.385,4.20119852]
[1770159117263,9.1542,98.448,98.394,4.22388072]
[1770159119663,9.1551,98.438,98.384,9.1601]
[1770159119865,142.3785,98.463,98.384,9.1601]
[1770159120564,9.1544,98.446,98.39,9.1595]
[1770159120964,9.1544,98.446,98.385,4.21654301]
[1770159121264,9.1552,98.437,98.385,4.21654301]
[1770159121461,7.67207398,98.463,98.385,4.21654301]
[1770159121660,7.67207398,98.463,98.385,13.37654301]
[1770159122859,9.1542,98.448,98.385,13.37654301]
[1770159123060,9.1542,98.448,98.386,4.21769472]
[1770159123266,482.696,98.464,98.387,9.1598]
[1770159123862,9.1549,98.441,98.387,9.1598]
[1770159124566,9.1549,98.441,98.378,9.1606]
[1770159124765,9.1549,98.441,98.37,4.23471799]
[1770159125065,9.1549,98.441,98.378,4.23471799]
[1770159126762,9.1549,98.441,98.379,13.44459353]
[1770159126958,9.1549,98.441,98.38,4.28409353]
[1770159128368,2.40590112,98.43,98.38,4.28409353]
[1770159128667,2.40590112,98.43,98.382,9.1603]
[1770159130562,2.40590112,98.42,98.38,4.28409353]
[1770159130762,9.1556,98.433,98.38,4.28409353]
[1770159131062,2.40590112,98.43,98.38,4.28409353]
[1770159131567,2.40590112,98.42,98.38,4.28409353]
[1770159132563,2.40590112,98.42,98.381,4.29522564]
[1770159135765,2.40590112,98.42,98.375,9.1609]
[1770159136769,2.40590112,98.42,98.364,4.26902651]
[1770159136770,2.40590112,98.39,98.349,4.26902651]
[1770159137669,2.40590112,98.39,98.339,9.1643]
[1770159137870,2.40590112,98.38,98.333,4.25102067]
[1770159138972,2.40590112,98.37,98.32,4.25102067]
[1770159139968,2.40590112,98.36,98.32,4.25102067]
[1770159143466,2.40590112,98.36,98.301,9.1678]
[1770159143467,2.40590112,98.35,98.301,13.36420833]
[1770159143665,2.40590112,98.35,98.301,4.19640833]
[1770159144376,337.58,98.384,98.274,142.6505]
[1770159144377,9.161,98.376,98.31,4.19640833]
[1770159144575,2.40590112,98.36,98.31,4.19640833]
[1770159145175,2.40590112,98.35,98.31,4.19640833]
[1770159145372,2.40590112,98.34,98.295,4.16840872]
[1770159145574,2.40590112,98.33,98.295,4.16840872]
[1770159145774,2.40590112,98.33,98.274,4.16840872]
[1770159145970,336.78,98.362,98.25,4.16840872]
[1770159145971,2.40590112,98.32,98.25,4.16840872]
[1770159146276,2.40590112,98.32,98.162,31.03636842]
[1770159146277,2.40590112,98.29,98.233,4.16840872]
[1770159146479,2.40590112,98.29,98.216,142.7344]
[1770159146480,2.41286859,98.3,98.24,4.16840872]
[1770159146783,2.41286859,98.32,98.256,4.16840872]
[1770159146965,2.41286859,98.32,98.255,142.6775]
[1770159146966,2.41286859,98.34,98.271,4.16840872]
[1770159147171,2.41286859,98.35,98.281,4.20422226]
[1770159147473,2.41286859,98.36,98.291,4.20422226]
[1770159148074,2.41286859,98.35,98.291,4.20422226]
[1770159148473,6.88586286,98.37,98.291,4.20422226]
[1770159148873,9.1621,98.364,98.291,4.20422226]
[1770159149772,9.1631,98.353,98.291,4.20422226]
[1770159151077,6.88586286,98.35,98.291,4.20422226]
[1770159151278,9.1635,98.348,98.269,4.55368442]
[1770159151873,9.1649,98.333,98.269,4.55368442]
[1770159153481,9.1659,98.323,98.269,4.55368442]
[1770159154477,9.1659,98.323,98.242,9.1733]
[1770159154478,9.1668,98.313,98.253,4.56340778]
[1770159156077,9.1676,98.304,98.253,4.56340778]
[1770159157677,9.1666,98.315,98.253,4.56340778]
[1770159158684,9.1653,98.329,98.261,4.50811114]
[1770159159783,9.1653,98.329,98.266,4.50585695]
[1770159160284,9.1661,98.321,98.266,4.50585695]
[1770159161181,9.1651,98.332,98.266,4.50585695]
[1770159163481,9.1651,98.332,98.27,4.54439361]
[1770159164582,142.4885,98.387,98.27,4.54439361]
[1770159164583,6.88586286,98.39,98.3,4.54439361]
[1770159164884,142.4844,98.389,98.3,4.54439361]
[1770159165184,9.1618,98.366,98.305,4.38356654]
[1770159168285,9.1618,98.366,98.306,4.35940306]
[1770159168486,9.1608,98.377,98.306,4.35940306]
[1770159168682,142.4353,98.423,98.321,4.35940306]
[1770159168878,142.4301,98.427,98.326,4.35940306]
[1770159168879,6.88586286,98.42,98.326,4.35940306]
[1770159169079,9.158,98.408,98.329,4.35940306]
[1770159169281,232.3,98.432,98.347,4.34396505]
[1770159169790,232.3,98.432,98.334,142.564]
[1770159169791,9.1561,98.428,98.354,4.34396505]
[1770159170686,9.157,98.418,98.357,4.34391904]
[1770159171086,335.66,98.433,98.357,4.34391904]
[1770159172387,2.40684979,98.41,98.357,4.34391904]
[1770159172784,2.40684979,98.41,98.359,4.30266815]
[1770159172980,2.40684979,98.41,98.351,4.30266815]
[1770159173388,2.40684979,98.4,98.351,4.30266815]
[1770159175689,2.40684979,98.39,98.341,9.1641]
[1770159176583,2.40684979,98.39,98.334,4.1373739]
[1770159176789,2.40684979,98.37,98.318,4.1373739]
[1770159178086,2.40684979,98.36,98.281,4.16383487]
[1770159178286,2.40684979,98.35,98.281,4.16383487]
[1770159178889,2.40684979,98.35,98.292,4.16383487]
[1770159180390,335.42,98.362,98.292,4.16383487]
[1770159180790,335.42,98.362,98.296,4.13817709]
[1770159181187,9.1614,98.371,98.296,4.13817709]
[1770159181692,9.1614,98.371,98.304,4.16808137]
[1770159184395,9.1622,98.362,98.304,4.16808137]
[1770159188998,9.1622,98.362,98.306,4.22894987]
[1770159191596,9.1614,98.371,98.306,4.22894987]
[1770159192200,6.88578771,98.39,98.308,4.25111555]
[1770159192201,9.1621,98.363,98.308,4.25111555]
[1770159193603,142.4359,98.423,98.31,4.25869362]
[1770159193803,6.88578771,98.4,98.312,4.25869362]
[1770159194502,335.68,98.399,98.312,4.25869362]
[1770159195796,9.1593,98.393,98.323,4.29507933]
[1770159196394,9.1607,98.378,98.323,4.29507933]
[1770159197301,9.1599,98.387,98.323,4.29507933]
[1770159198201,9.159,98.397,98.324,9.1657]
[1770159198406,6.88578771,98.4,98.304,4.15369926]
[1770159198706,9.1595,98.391,98.325,9.1656]
[1770159199206,9.1595,98.391,98.325,13.33055141]
[1770159199406,9.1595,98.391,98.329,4.16495141]
[1770159200302,9.1585,98.402,98.338,4.16495141]
[1770159201199,9.1575,98.412,98.348,9.1634]
[1770159201407,9.1575,98.412,98.349,4.16845284]
[1770159201605,6.88578771,98.44,98.349,4.16845284]
[1770159201808,9.1558,98.431,98.362,4.16845284]
[1770159202010,336.46,98.439,98.362,4.16845284]
[1770159202509,2.40618974,98.43,98.362,4.16845284]
[1770159203103,2.40618974,98.43,98.384,9.1601]
[1770159203406,2.40618974,98.43,98.385,4.15663456]
[1770159203608,2.40618974,98.45,98.398,4.15663456]
[1770159203999,7.71568922,98.504,98.379,142.4989]
[1770159204000,9.1509,98.483,98.413,4.15663456]
[1770159204199,2.40618974,98.48,98.42,4.15663456]
[1770159205509,2.40618974,98.48,98.436,13.32043128]
[1770159205704,2.40618974,98.48,98.436,4.16523128]
[1770159206311,2.40618974,98.49,98.438,4.16523128]
[1770159206711,2.40618974,98.5,98.438,4.16523128]
[1770159207012,2.40618974,98.49,98.438,4.16523128]
[1770159207807,2.40618974,98.49,98.44,4.17162321]
[1770159208009,2.40618974,98.5,98.44,4.17162321]
[1770159208210,2.40618974,98.52,98.463,9.1527]
[1770159208405,2.40157901,98.53,98.464,4.17162321]
[1770159209913,2.40157901,98.53,98.469,4.19619103]
[1770159210307,2.40157901,98.52,98.469,4.19619103]
[1770159211116,2.40157901,98.54,98.473,4.19619103]
[1770159211312,2.40157901,98.56,98.497,4.21526961]
[1770159211513,2.40157901,98.57,98.507,4.21526961]
[1770159212216,9.141,98.59,98.519,4.21526961]
[1770159212412,2.40157901,98.57,98.519,4.21526961]
[1770159212916,2.40157901,98.57,98.496,142.3283]
[1770159212917,2.40157901,98.56,98.501,4.21526961]
[1770159214416,1.57407267,98.611,98.538,3.71150196]
[1770159214713,1.57407267,98.611,98.543,3.71150196]
[1770159215122,142.1457,98.624,98.543,3.71150196]
[1770159215123,1.4753661,98.597,98.543,3.71150196]
[1770159215318,1.4753661,98.587,98.502,3.71150196]
[1770159215525,1.4753661,98.583,98.502,3.71150196]
[1770159215725,1.4753661,98.581,98.502,3.71150196]
[1770159215931,1.4753661,98.565,98.502,3.71150196]
[1770159216227,1.4753661,98.559,98.48,3.71150196]
[1770159216423,1.4753661,98.549,98.48,3.71150196]
[1770159216620,1.4753661,98.545,98.48,3.71150196]
[1770159216819,1.4753661,98.545,98.462,12.86440196]
[1770159217126,1.53912482,98.529,98.462,3.71150196]
[1770159217328,1.53912482,98.529,98.45,9.154]
[1770159217622,1.53912482,98.526,98.443,3.71150196]
[1770159217928,1.53912482,98.517,98.443,3.71150196]
[1770159218234,1.53912482,98.509,98.443,3.71150196]
[1770159218625,1.53912482,98.503,98.443,3.71150196]
[1770159219226,1.53912482,98.503,98.38,149.34777848]
[1770159219227,1.79179721,98.526,98.459,3.71150196]
[1770159220118,1.79179721,98.526,98.474,9.1517]
[1770159221624,1.5073032,98.559,98.486,3.71150196]
[1770159221931,1.5073032,98.559,98.489,3.71150196]
[1770159222728,1.5073032,98.559,98.502,9.1491]
[1770159222929,1.5073032,98.559,98.469,142.3687]
[1770159222930,1.5073032,98.559,98.47,3.71150196]
[1770159223132,6.85037848,98.56,98.47,3.71150196]
[1770159223133,1.48765352,98.557,98.47,3.71150196]
[1770159223330,1.48765352,98.543,98.47,3.71150196]
[1770159223831,9.1434,98.565,98.496,3.71150196]
[1770159224128,1.48765352,98.604,98.526,3.71150196]
[1770159224334,1.48765352,98.602,98.526,3.71150196]
[1770159225129,1.4175281,98.6,98.536,9.1459]
[1770159225336,1.4175281,98.628,98.553,142.2466]
[1770159225535,1.4175281,98.628,98.564,142.2303]
[1770159225736,1.4175281,98.628,98.572,142.2191]
[1770159225936,222.6,98.653,98.572,142.2191]
[1770159225937,1.4175281,98.648,98.573,3.71150196]
[1770159226133,1.4175281,98.648,98.589,9.1411]
[1770159226933,1.4175281,98.648,98.573,3.71150196]
[1770159226934,1.4175281,98.648,98.578,9.1421]
[1770159227533,1.39292789,98.639,98.573,3.71150196]
[1770159227929,1.39292789,98.639,98.562,9.1436]
[1770159228129,1.39292789,98.634,98.562,9.1436]
[1770159228335,1.39292789,98.634,98.552,3.71150196]
[1770159228736,1.39292789,98.619,98.552,3.71150196]
[1770159229436,10.6015064,98.618,98.552,3.71150196]
[1770159229633,1.4630064,98.617,98.552,3.71150196]
[1770159230029,9.1386,98.616,98.552,3.71150196]
[1770159233036,1.4630064,98.617,98.552,3.71150196]
[1770159233436,9.1386,98.616,98.552,3.71150196]
[1770159233631,1.42545751,98.615,98.552,3.71150196]
[1770159233832,1.42545751,98.615,98.518,3.74455783]
[1770159234644,1.42545751,98.615,98.501,239.1]
[1770159234645,1.42545751,98.61,98.532,3.74455783]
[1770159235446,1.42310247,98.599,98.532,3.74455783]
[1770159235940,1.42310247,98.599,98.486,409.29861503]
[1770159235941,9.1428,98.571,98.502,3.66244338]
[1770159237841,1.42310247,98.578,98.504,3.66244338]
[1770159238445,1.42310247,98.578,98.518,9.1476]
[1770159238636,1.42310247,98.578,98.519,3.66244338]
[1770159239143,1.47240319,98.595,98.53,9.1465]
[1770159239342,1.47240319,98.595,98.519,3.66244338]
[1770159239944,1.4780587,98.59,98.504,3.66244338]
[1770159240140,6.85037848,98.58,98.504,3.66244338]
[1770159240339,1.4780587,98.579,98.504,3.66244338]
[1770159240545,1.4780587,98.572,98.505,9.1488]
[1770159240746,1.4780587,98.572,98.504,3.66244338]
[1770159240945,149.05957848,98.58,98.476,3.66244338]
[1770159240946,1.4780587,98.566,98.476,3.66244338]
[1770159241141,1.4780587,98.559,98.476,3.66244338]
[1770159241345,9.1458,98.538,98.476,3.66244338]
[1770159241843,1.47345297,98.53,98.476,3.66244338]
[1770159242349,1.47345297,98.53,98.46,9.153]
[1770159242744,1.47345297,98.528,98.46,9.153]
[1770159243645,1.39538127,98.526,98.46,9.153]
[1770159244048,9.148,98.515,98.458,3.66244338]
[1770159244649,1.39538127,98.514,98.458,3.66244338]
[1770159244846,1.39538127,98.512,98.458,3.66244338]
[1770159245654,1.12850497,98.509,98.439,3.66244338]
[1770159245854,1.12850497,98.499,98.439,3.66244338]
[1770159246056,1.12850497,98.496,98.397,3.66244338]
[1770159246549,10.27940497,98.483,98.412,3.66244338]
[1770159246756,1.12850497,98.483,98.412,3.66244338]
[1770159247250,332.02,98.492,98.342,30.54]
[1770159247251,149.23227848,98.46,98.342,30.54]
[1770159247452,149.23227848,98.46,98.243,428.0858]
[1770159247453,1.15589721,98.439,98.349,3.66244338]
[1770159247649,1.15589721,98.458,98.373,3.66244338]
[1770159247857,1.15589721,98.458,98.385,3.66244338]
[1770159248251,1.15589721,98.458,98.376,142.503]
[1770159248252,1.15589721,98.477,98.39,3.66244338]
[1770159248550,1.15589721,98.477,98.406,3.66244338]
[1770159248748,6.85037848,98.5,98.39,142.482]
[1770159248749,388.86209555,98.497,98.414,3.66244338]
[1770159249348,388.86209555,98.497,98.426,3.66244338]
[1770159250856,388.86209555,98.497,98.428,3.66244338]
[1770159252653,1.41401912,98.495,98.428,3.66244338]
[1770159253654,9.1504,98.49,98.428,3.66244338]
[1770159253960,1.40581388,98.489,98.428,3.66244338]
[1770159254363,387.70619834,98.497,98.405,9.1581]
[1770159254364,1.40581388,98.479,98.406,3.66244338]
[1770159254748,9.1525,98.467,98.406,3.66244338]
[1770159254954,10.55831388,98.467,98.406,3.66244338]
[1770159255958,1.40581388,98.467,98.406,3.66244338]
[1770159256352,6.85037848,98.48,98.406,3.66244338]
[1770159256553,1.39880795,98.485,98.419,3.66244338]
[1770159258361,1.40071094,98.47,98.397,3.66244338]
[1770159258762,1.40071094,98.465,98.397,3.66244338]
[1770159258963,1.40071094,98.448,98.37,3.66244338]
[1770159259568,9.1546,98.444,98.376,3.66244338]
[1770159260863,1.40071094,98.448,98.387,3.79076862]
[1770159261569,9.1544,98.446,98.387,3.79076862]
[1770159262565,1.40071094,98.448,98.388,9.1597]
[1770159263068,1.40071094,98.448,98.369,238.0]
[1770159263069,6.85037848,98.46,98.401,9.1585]
[1770159263267,9.1524,98.467,98.402,3.79076862]
[1770159264070,9.1524,98.467,98.405,9.1581]
[1770159264668,9.1533,98.458,98.405,9.1581]
[1770159266161,9.1533,98.458,98.405,12.94886862]
[1770159267360,1.30463811,98.488,98.408,142.4565]
[1770159267566,1.30463811,98.488,98.415,3.79076862]
[1770159268064,1.30463811,98.484,98.43,9.1558]
[1770159268669,9.1516,98.477,98.417,3.79076862]
[1770159269674,9.151,98.483,98.418,9.1569]
[1770159270170,9.151,98.483,98.419,3.79076862]
[1770159270370,9.1513,98.48,98.419,3.79076862]
[1770159270567,1.25754332,98.482,98.419,3.79076862]
[1770159271665,1.25754332,98.482,98.42,9.1568]
[1770159271870,1.25754332,98.482,98.421,3.79076862]
[1770159272667,1.25754332,98.482,98.424,3.79076862]
[1770159273681,9.1496,98.498,98.43,3.79076862]
[1770159274472,9.1496,98.498,98.432,3.79076862]
[1770159274673,1.21999041,98.501,98.432,3.79076862]
[1770159275472,9.1486,98.508,98.445,3.79076862]
[1770159275677,337.22,98.515,98.445,3.79076862]
[1770159275876,1.20214621,98.514,98.445,3.79076862]
[1770159277078,1.20214621,98.508,98.445,3.79076862]
[1770159277587,9.1499,98.494,98.445,3.79076862]
[1770159278278,9.1491,98.503,98.445,3.79076862]
[1770159278879,1.20214621,98.508,98.45,9.1539]
[1770159279182,142.2328,98.564,98.427,142.4285]
[1770159279183,1.19096396,98.527,98.451,3.79076862]
[1770159279385,142.2328,98.564,98.427,142.4285]
[1770159279386,9.1453,98.544,98.469,3.79076862]
[1770159279678,1.19096396,98.568,98.477,3.79076862]
[1770159279880,1.19096396,98.568,98.492,3.79076862]
[1770159280476,1.19096396,98.586,98.507,3.79076862]
[1770159280679,1.19096396,98.586,98.511,3.79076862]
[1770159280880,1.19096396,98.586,98.523,3.79076862]
[1770159281080,6.86903029,98.6,98.523,3.79076862]
[1770159281279,1.02750974,98.599,98.523,3.79076862]
[1770159281982,1.02750974,98.599,98.531,3.79076862]
[1770159286380,170.16143037,99.313,98.524,142.2889]
[1770159286381,6.86903029,98.63,98.544,3.79076862]
[1770159286579,6.86903029,98.63,98.549,3.79076862]
[1770159286791,6.86903029,98.63,98.55,151.3951]
[1770159287078,6.86903029,98.63,98.554,142.2458]
[1770159287284,1.5040431,98.633,98.556,3.79076862]
[1770159287881,1.5040431,98.633,98.559,3.79076862]
[1770159288283,6.86903029,98.65,98.568,3.79076862]
[1770159288585,6.86903029,98.65,98.587,3.79076862]
[1770159289287,6.86903029,98.65,98.589,3.79076862]
[1770159289685,6.86903029,98.65,98.597,9.1403]
[1770159290687,6.86903029,98.65,98.589,3.79076862]
[1770159290688,1.23474415,98.649,98.589,3.79076862]
[1770159291390,1.2196453,98.646,98.589,3.79076862]
[1770159291983,1.2196453,98.646,98.59,9.141]
[1770159293390,1.2196453,98.646,98.589,3.79076862]
[1770159294187,9.1363,98.641,98.589,3.79076862]
[1770159294592,1.2196453,98.646,98.589,3.79076862]
[1770159295284,142.1207,98.641,98.56,3.79536051]
[1770159295490,1.2135504,98.636,98.56,3.79536051]
[1770159296696,9.1377,98.626,98.562,9.1436]
[1770159296991,10.3512504,98.626,98.562,9.1436]
[1770159297594,6.86903029,98.62,98.562,3.79536051]
[1770159297791,1.12021697,98.619,98.562,3.79536051]
[1770159298692,1.12021697,98.638,98.566,3.79536051]
[1770159299197,9.1374,98.629,98.568,3.79536051]
[1770159299390,1.12021697,98.638,98.568,3.79536051]
[1770159299792,9.1382,98.621,98.568,3.79536051]
[1770159300192,1.12021697,98.638,98.568,3.79536051]
[1770159300593,10.26985121,98.63,98.571,3.79536051]
[1770159300793,1.13255121,98.629,98.571,3.79536051]
[1770159301792,1.0298692,98.627,98.571,3.79536051]
[1770159302297,6.86903029,98.63,98.51,149.17783029]
[1770159302298,1.0298692,98.611,98.551,3.79536051]
[1770159302498,1.0298692,98.609,98.534,3.79536051]
[1770159302694,332.12,98.62,98.486,3.79536051]
[1770159302695,1.0298692,98.585,98.486,3.79536051]
[1770159302891,1.0298692,98.571,98.505,3.79536051]
[1770159303098,1.0298692,98.571,98.511,3.79536051]
[1770159303296,6.86903029,98.58,98.511,3.79536051]
[1770159304195,16.01093029,98.58,98.515,3.79536051]
[1770159304391,6.86903029,98.58,98.515,3.79536051]
[1770159304602,0.96449007,98.579,98.515,3.79536051]
[1770159304802,0.96449007,98.569,98.479,3.79536051]
[1770159305101,0.96449007,98.569,98.481,3.79536051]
[1770159305399,9.1431,98.568,98.493,3.79536051]
[1770159305797,10.10506244,98.568,98.493,3.79536051]
[1770159306297,10.10506244,98.568,98.495,3.79536051]
[1770159306496,0.96196244,98.568,98.495,3.79536051]
[1770159307203,0.96196244,98.568,98.517,9.1477]
[1770159308201,0.96196244,98.568,98.492,3.79536051]
[1770159308402,0.96720448,98.539,98.449,3.79536051]
[1770159308600,0.96720448,98.537,98.449,3.79536051]